fUST/lending_fUST_20250529
["ID","MTS","AMOUNT","RATE_DAILY","PERIOD"]
[362873675,1748503842575,-430.0,0.00019452,2]
[362873676,1748503842585,-430.0,0.00019452,2]
[362873677,1748503842595,-430.0,0.00019452,2]
[362873678,1748503842605,-305.5106063,0.00019452,2]
[362873679,1748503842615,-527.6491173,0.00019452,2]
[362873680,1748503842625,-430.0,0.00019452,2]
[362873681,1748503842634,-430.0,0.00019452,2]
[362873682,1748503842644,-430.0,0.00019452,2]
[362873683,1748503842654,-430.0,0.00019452,2]
[362873684,1748503842664,-430.0,0.00019452,2]
[362873685,1748503842674,-430.0,0.00019452,2]
[362873686,1748503842684,-430.0,0.00019452,2]
[362873687,1748503842693,-430.0,0.00019452,2]
[362873688,1748503842703,-430.0,0.00019452,2]
[362873689,1748503842713,-430.0,0.00019452,2]
[362873690,1748503842723,-430.0,0.00019452,2]
[362873691,1748503842733,-430.0,0.00019452,2]
[362873692,1748503842742,-430.0,0.00019452,2]
[362873693,1748503842752,-430.0,0.00019452,2]
[362873694,1748503842762,-430.0,0.00019452,2]
[362873696,1748503842772,-430.0,0.00019452,2]
[362873698,1748503842781,-429.26509159,0.00019452,2]
[362873700,1748503842791,-432.9224785,0.00019452,2]
[362873702,1748503842804,-2077.85,0.00019452,2]
[362873703,1748503842814,-430.0,0.00019452,2]
[362873704,1748503842824,-430.0,0.00019452,2]
[362873706,1748503842833,-430.0,0.00019452,2]
[362873707,1748503842844,-468.49736692,0.00019452,2]
[362873708,1748503842854,-430.0,0.00019452,2]
[362873709,1748503842863,-432.33,0.00019452,2]
[362873710,1748503842874,-749.75,0.00019452,2]
[362873711,1748503842884,-350.62874166,0.00019452,2]
[362873713,1748503842893,-430.0,0.00019452,2]
[362873715,1748503842903,-430.0,0.00019452,2]
[362873717,1748503842912,-430.0,0.00019452,2]
[362873718,1748503842921,-1021.9,0.00019452,2]
[362873719,1748503842931,-430.0,0.00019452,2]
[362873720,1748503842940,-430.0,0.00019452,2]
[362873721,1748503842949,-430.0,0.00019452,2]
[362873722,1748503842959,-430.0,0.00019452,2]
[362873723,1748503842968,-430.0,0.00019452,2]
[362873725,1748503842978,-430.0,0.00019452,2]
[362873726,1748503842988,-538.06,0.00019452,2]
[362873727,1748503842997,-430.0,0.00019452,2]
[362873728,1748503843006,-430.0,0.00019452,2]
[362873729,1748503843015,-498.28,0.00019452,2]
[362873730,1748503843025,-430.0,0.00019452,2]
[362873731,1748503843035,-430.0,0.00019452,2]
[362873732,1748503843045,-189.60779744,0.00019452,2]
[362873733,1748503843055,-430.0,0.00019452,2]
[362873734,1748503843066,-430.0,0.00019452,2]
[362873735,1748503843076,-430.0,0.00019452,2]
[362873736,1748503843085,-423.49471594,0.00019452,2]
[362873737,1748503843095,-430.0,0.00019452,2]
[362873738,1748503843105,-1253.31,0.00019452,2]
[362873739,1748503843115,-430.0,0.00019452,2]
[362873741,1748503843124,-450.71906561,0.00019452,2]
[362873742,1748503843134,-926.61,0.00019452,2]
[362873743,1748503843144,-430.0,0.00019452,2]
[362873744,1748503843154,-244.96563038,0.00019452,2]
[362873745,1748503843164,-430.0,0.00019452,2]
[362873746,1748503843174,-430.0,0.00019452,2]
[362873747,1748503843184,-430.0,0.00019452,2]
[362873748,1748503843194,-430.0,0.00019452,2]
[362873749,1748503843203,-430.0,0.00019452,2]
[362873750,1748503843212,-430.0,0.00019452,2]
[362873751,1748503843222,-430.0,0.00019452,2]
[362873752,1748503843232,-431.37319427,0.00019452,2]
[362873753,1748503843241,-327.94774875,0.00019452,2]
[362873754,1748503843251,-460.39,0.00019452,2]
[362873755,1748503843260,-430.0,0.00019452,2]
[362873756,1748503843270,-430.0,0.00019452,2]
[362873757,1748503843279,-451.15,0.00019452,2]
[362873758,1748503843288,-430.0,0.00019452,2]
[362873759,1748503843298,-430.0,0.00019452,2]
[362873760,1748503843307,-1290.58,0.00019452,2]
[362873761,1748503843316,-430.0,0.00019452,2]
[362873762,1748503843325,-430.0,0.00019452,2]
[362873763,1748503843335,-430.0,0.00019452,2]
[362873764,1748503843344,-430.0,0.00019452,2]
[362873765,1748503843353,-430.0,0.00019452,2]
[362873766,1748503843363,-599.69,0.00019452,2]
[362873767,1748503843372,-430.0,0.00019452,2]
[362873768,1748503843381,-430.0,0.00019452,2]
[362873769,1748503843392,-719.53,0.00019452,2]
[362873770,1748503843401,-430.0,0.00019452,2]
[362873771,1748503843411,-431.7,0.00019452,2]
[362873772,1748503843420,-2305.04,0.00019452,2]
[362873773,1748503843430,-1306.65,0.00019452,2]
[362873774,1748503843439,-430.0,0.00019452,2]
[362873775,1748503843448,-430.0,0.00019452,2]
[362873776,1748503843458,-430.0,0.00019452,2]
[362873777,1748503843467,-500.0,0.00019452,2]
[362873778,1748503843476,-353300.0,0.000195,3]
[362873779,1748503843485,-12660.97845086,0.000195,3]
[362873781,1748503843494,-842.5625,0.000195,3]
[362873783,1748503843503,-1000.0,0.00019721,2]
[362873785,1748503843512,-1000.0,0.00019721,2]
[362873787,1748503843522,-859.78564372,0.00019721,2]
[362873789,1748503843533,-1000.0,0.00019721,2]
[362873792,1748503843543,-500.0,0.00019721,2]
[362873793,1748503843553,-1000.0,0.00019721,2]
[362873796,1748503843563,-1000.0,0.00019721,2]
[362873798,1748503843573,-1000.0,0.00019721,2]
[362873799,1748503843582,-1000.0,0.00019721,2]
[362873800,1748503843592,-1004.82481693,0.00019721,2]
[362873801,1748503843602,-1000.0,0.00019721,2]
[362873802,1748503843611,-160.0,0.00019725,2]
[362873803,1748503843621,-430.0,0.00019726,2]
[362873804,1748503843630,-430.0,0.00019726,2]
[362873805,1748503843640,-430.0,0.00019726,2]
[362873806,1748503843650,-430.0,0.00019726,2]
[362873807,1748503843660,-430.0,0.00019726,2]
[362873808,1748503843669,-430.0,0.00019726,2]
[362873809,1748503843679,-506.73,0.00019726,2]
[362873810,1748503843689,-430.0,0.00019726,2]
[362873811,1748503843698,-430.0,0.00019726,2]
[362873812,1748503843708,-430.0,0.00019726,2]
[362873813,1748503843717,-469.55745892,0.00019726,2]
[362873814,1748503843726,-430.0,0.00019726,2]
[362873815,1748503843736,-430.0,0.00019726,2]
[362873816,1748503843746,-430.0,0.00019726,2]
[362873817,1748503843756,-430.0,0.00019726,2]
[362873818,1748503843766,-201.36480667,0.00019726,2]
[362873819,1748503843776,-430.0,0.00019726,2]
[362873820,1748503843786,-430.0,0.00019726,2]
[362873821,1748503843797,-430.0,0.00019726,2]
[362873822,1748503843808,-430.0,0.00019726,2]
[362873823,1748503843818,-2077.85,0.00019726,2]
[362873824,1748503843827,-274.86100939,0.00019726,2]
[362873825,1748503843836,-574.41539997,0.00019726,2]
[362873826,1748503843846,-432.33,0.00019726,2]
[362873827,1748503843856,-749.75,0.00019726,2]
[362873828,1748503843865,-430.0,0.00019726,2]
[362873829,1748503843875,-429.99124419,0.00019726,2]
[362873830,1748503843887,-430.0,0.00019726,2]
[362873831,1748503843896,-1021.9,0.00019726,2]
[362873832,1748503843906,-430.0,0.00019726,2]
[362873833,1748503843915,-430.0,0.00019726,2]
[362873834,1748503843925,-430.0,0.00019726,2]
[362873835,1748503843934,-430.0,0.00019726,2]
[362873836,1748503843944,-430.0,0.00019726,2]
[362873837,1748503843954,-430.0,0.00019726,2]
[362873838,1748503843963,-538.06,0.00019726,2]
[362873839,1748503843976,-430.0,0.00019726,2]
[362873840,1748503843987,-430.0,0.00019726,2]
[362873841,1748503843996,-498.28,0.00019726,2]
[362873842,1748503844006,-430.0,0.00019726,2]
[362873843,1748503844015,-430.0,0.00019726,2]
[362873844,1748503844025,-430.0,0.00019726,2]
[362873845,1748503844034,-430.0,0.00019726,2]
[362873846,1748503844044,-430.0,0.00019726,2]
[362873847,1748503844053,-430.0,0.00019726,2]
[362873848,1748503844062,-1253.31,0.00019726,2]
[362873849,1748503844072,-430.0,0.00019726,2]
[362873850,1748503844082,-926.61,0.00019726,2]
[362873851,1748503844092,-547.50980648,0.00019726,2]
[362873852,1748503844102,-430.0,0.00019726,2]
[362873853,1748503844112,-430.0,0.00019726,2]
[362873854,1748503844121,-430.0,0.00019726,2]
[362873855,1748503844131,-430.0,0.00019726,2]
[362873856,1748503844141,-430.0,0.00019726,2]
[362873857,1748503844150,-430.0,0.00019726,2]
[362873858,1748503844160,-430.0,0.00019726,2]
[362873859,1748503844170,-460.39,0.00019726,2]
[362873860,1748503844180,-438.38242655,0.00019726,2]
[362873861,1748503844189,-451.15,0.00019726,2]
[362873862,1748503844198,-174.721436,0.00019726,2]
[362873863,1748503844208,-401.10380602,0.00019726,2]
[362873864,1748503844218,-947.15578326,0.00019726,2]
[362873865,1748503844267,-343.42421674,0.00019726,2]
[362873866,1748503844278,-28.27931677,0.00019726,2]
[362873881,1748503846609,-1014.49744486,0.00019078,2]
[362873882,1748503846619,-1014.49744483,0.00019159,2]
[362873883,1748503846629,-200.0,0.00019172,2]
[362873884,1748503846639,-238.00401487,0.00019178,2]
[362873890,1748504477738,166.504531,0.00013699,2]
[362873892,1748504790722,556.6,0.00023,120]
[362873893,1748504951297,-500.0,0.00024,120]
[362873907,1748505032809,-4482.0761594,0.00018176,2]
[362873908,1748505032819,-372.53108525,0.00019078,2]
[362873909,1748505032829,-160.0,0.00019154,2]
[362873910,1748505032838,-300.0,0.00019172,2]
[362873911,1748505032847,-160.0,0.00019177,2]
[362873912,1748505032856,-155.0,0.00019177,2]
[362873913,1748505032865,-300.0,0.00019177,2]
[362873914,1748505032876,-243.0,0.00019177,2]
[362873915,1748505032884,-183.0,0.00019177,2]
[362873916,1748505032893,-193.79178054,0.00019177,2]
[362873917,1748505032903,-430.0,0.00019178,2]
[362873918,1748505032912,-430.0,0.00019178,2]
[362873919,1748505032921,-430.0,0.00019178,2]
[362873920,1748505032930,-236.93344488,0.00019178,2]
[362873921,1748505032939,-481.96345513,0.00019178,2]
[362873922,1748505032948,-430.0,0.00019178,2]
[362873923,1748505032957,-430.0,0.00019178,2]
[362873924,1748505032966,-420.7134093,0.00019178,2]
[362873925,1748505032975,-430.0,0.00019178,2]
[362873926,1748505032984,-430.0,0.00019178,2]
[362873927,1748505032993,-430.0,0.00019178,2]
[362873928,1748505033002,-430.0,0.00019178,2]
[362873929,1748505033012,-430.0,0.00019178,2]
[362873930,1748505033021,-430.0,0.00019178,2]
[362873931,1748505033030,-430.0,0.00019178,2]
[362873932,1748505033039,-430.0,0.00019178,2]
[362873933,1748505033048,-430.0,0.00019178,2]
[362873934,1748505033058,-201.36480667,0.00019178,2]
[362873935,1748505033067,-430.0,0.00019178,2]
[362873936,1748505033077,-192.66632329,0.00019178,2]
[362873937,1748505033088,-430.0,0.00019178,2]
[362873938,1748505033097,-430.0,0.00019178,2]
[362873939,1748505033107,-430.0,0.00019178,2]
[362873940,1748505033117,-242.45576669,0.00019178,2]
[362873941,1748505033127,-460.0,0.00019178,2]
[362873942,1748505033137,-430.0,0.00019178,2]
[362873943,1748505033146,-430.0,0.00019178,2]
[362873944,1748505033156,-430.0,0.00019178,2]
[362873945,1748505033166,-474.05980753,0.00019178,2]
[362873946,1748505033176,-430.0,0.00019178,2]
[362873947,1748505033186,-510.58,0.00019178,2]
[362873948,1748505033195,-430.0,0.00019178,2]
[362873949,1748505033205,-500.0,0.00019178,2]
[362873950,1748505033214,-547.50980648,0.00019178,2]
[362873951,1748505033224,-430.0,0.00019178,2]
[362873952,1748505033233,-430.0,0.00019178,2]
[362873953,1748505033243,-156.46840548,0.00019178,2]
[362873954,1748505033253,-430.0,0.00019178,2]
[362873955,1748505033263,-442.67680293,0.00019178,2]
[362873956,1748505033273,-430.0,0.00019178,2]
[362873957,1748505033287,-174.721436,0.00019178,2]
[362873958,1748505033297,-401.10380602,0.00019178,2]
[362873959,1748505033310,-430.0,0.00019178,2]
[362873960,1748505033325,-430.0,0.00019178,2]
[362873961,1748505033339,-430.0,0.00019178,2]
[362873962,1748505033353,-181.85650223,0.00019178,2]
[362873963,1748505033364,-430.0,0.00019178,2]
[362873964,1748505033375,-284.97642762,0.00019178,2]
[362873965,1748505033389,-430.0,0.00019178,2]
[362873966,1748505033402,-559.60182779,0.00019178,2]
[362873967,1748505033415,-430.0,0.00019178,2]
[362873968,1748505033428,-615.3,0.00019178,2]
[362873969,1748505033441,-430.0,0.00019178,2]
[362873970,1748505033453,-430.0,0.00019178,2]
[362873971,1748505033467,-430.0,0.00019178,2]
[362873972,1748505033480,-430.0,0.00019178,2]
[362873973,1748505033493,-430.0,0.00019178,2]
[362873974,1748505033504,-217.94429613,0.00019178,2]
[362873975,1748505033517,-430.0,0.00019178,2]
[362873976,1748505033529,-430.0,0.00019178,2]
[362873977,1748505033541,-430.0,0.00019178,2]
[362873978,1748505033554,-430.0,0.00019178,2]
[362873979,1748505033567,-430.0,0.00019178,2]
[362873980,1748505033579,-430.0,0.00019178,2]
[362873981,1748505033591,-430.0,0.00019178,2]
[362873982,1748505033601,-1571.33,0.00019178,2]
[362873983,1748505033612,-430.0,0.00019178,2]
[362873984,1748505033625,-430.0,0.00019178,2]
[362873985,1748505033636,-430.0,0.00019178,2]
[362873986,1748505033649,-430.0,0.00019178,2]
[362873987,1748505033661,-430.0,0.00019178,2]
[362873988,1748505033674,-430.0,0.00019178,2]
[362873989,1748505033686,-430.0,0.00019178,2]
[362873990,1748505033699,-430.0,0.00019178,2]
[362873991,1748505033712,-430.0,0.00019178,2]
[362873992,1748505033725,-430.0,0.00019178,2]
[362873993,1748505033739,-430.0,0.00019178,2]
[362873994,1748505033750,-430.0,0.00019178,2]
[362873995,1748505033761,-430.0,0.00019178,2]
[362873996,1748505033771,-2732.65,0.00019178,2]
[362873997,1748505033783,-444.79412715,0.00019178,2]
[362873998,1748505033798,-430.0,0.00019178,2]
[362873999,1748505033812,-230.71493179,0.00019178,2]
[362874000,1748505033825,-993.66,0.00019178,2]
[362874001,1748505033835,-430.0,0.00019178,2]
[362874002,1748505033847,-430.0,0.00019178,2]
[362874003,1748505033858,-430.0,0.00019178,2]
[362874004,1748505033870,-430.0,0.00019178,2]
[362874005,1748505033884,-430.0,0.00019178,2]
[362874006,1748505033895,-2382.98,0.00019178,2]
[362874007,1748505033906,-613.17,0.00019178,2]
[362874008,1748505033917,-442.26922222,0.00019178,2]
[362874009,1748505033928,-902.73,0.00019178,2]
[362874010,1748505033940,-1504.2,0.00019178,2]
[362874011,1748505033951,-430.0,0.00019178,2]
[362874012,1748505033963,-430.0,0.00019178,2]
[362874013,1748505033975,-430.0,0.00019178,2]
[362874014,1748505033986,-430.0,0.00019178,2]
[362874015,1748505033998,-430.0,0.00019178,2]
[362874016,1748505034009,-430.0,0.00019178,2]
[362874017,1748505034022,-430.0,0.00019178,2]
[362874018,1748505034034,-430.0,0.00019178,2]
[362874019,1748505034046,-430.0,0.00019178,2]
[362874020,1748505034057,-430.0,0.00019178,2]
[362874021,1748505034068,-430.0,0.00019178,2]
[362874022,1748505034080,-430.0,0.00019178,2]
[362874023,1748505034091,-430.0,0.00019178,2]
[362874024,1748505034102,-430.0,0.00019178,2]
[362874025,1748505034114,-430.0,0.00019178,2]
[362874026,1748505034125,-430.0,0.00019178,2]
[362874027,1748505034137,-430.0,0.00019178,2]
[362874028,1748505034148,-430.0,0.00019178,2]
[362874029,1748505034160,-217.37314598,0.00019178,2]
[362874030,1748505034173,-430.0,0.00019178,2]
[362874031,1748505034185,-357.24,0.00019178,2]
[362874032,1748505034197,-430.0,0.00019178,2]
[362874033,1748505034209,-430.0,0.00019178,2]
[362874034,1748505034220,-430.0,0.00019178,2]
[362874035,1748505034232,-722.52,0.00019178,2]
[362874036,1748505034244,-430.0,0.00019178,2]
[362874037,1748505034256,-430.0,0.00019178,2]
[362874038,1748505034267,-430.0,0.00019178,2]
[362874039,1748505034283,-430.0,0.00019178,2]
[362874040,1748505034296,-791.86,0.00019178,2]
[362874041,1748505034307,-430.0,0.00019178,2]
[362874042,1748505034319,-430.0,0.00019178,2]
[362874043,1748505034331,-430.0,0.00019178,2]
[362874044,1748505034342,-1447.82,0.00019178,2]
[362874045,1748505034355,-430.0,0.00019178,2]
[362874046,1748505034367,-430.0,0.00019178,2]
[362874047,1748505034379,-430.0,0.00019178,2]
[362874048,1748505034391,-381.40040829,0.00019178,2]
[362874049,1748505034403,-430.0,0.00019178,2]
[362874050,1748505034415,-430.0,0.00019178,2]
[362874051,1748505034427,-433.64,0.00019178,2]
[362874052,1748505034438,-532.99818777,0.00019178,2]
[362874053,1748505034451,-430.0,0.00019178,2]
[362874054,1748505034462,-430.0,0.00019178,2]
[362874055,1748505034474,-430.0,0.00019178,2]
[362874056,1748505034485,-430.0,0.00019178,2]
[362874057,1748505034497,-430.0,0.00019178,2]
[362874058,1748505034508,-454.74116748,0.00019178,2]
[362874059,1748505034519,-430.0,0.00019178,2]
[362874060,1748505034530,-430.0,0.00019178,2]
[362874061,1748505034542,-430.0,0.00019178,2]
[362874062,1748505034552,-430.0,0.00019178,2]
[362874063,1748505034562,-756.65,0.00019178,2]
[362874064,1748505034571,-430.0,0.00019178,2]
[362874065,1748505034730,-430.0,0.00019178,2]
[362874066,1748505034746,-430.0,0.00019178,2]
[362874067,1748505034756,-1636.66,0.00019178,2]
[362874068,1748505034766,-430.0,0.00019178,2]
[362874069,1748505034776,-379.39907871,0.00019178,2]
[362874070,1748505034786,-576.68,0.00019178,2]
[362874071,1748505034797,-430.0,0.00019178,2]
[362874072,1748505034806,-430.0,0.00019178,2]
[362874073,1748505034817,-430.0,0.00019178,2]
[362874074,1748505034826,-430.0,0.00019178,2]
[362874075,1748505034836,-430.0,0.00019178,2]
[362874076,1748505034847,-430.0,0.00019178,2]
[362874077,1748505034857,-430.0,0.00019178,2]
[362874078,1748505034867,-430.0,0.00019178,2]
[362874079,1748505034876,-518.86838749,0.00019178,2]
[362874080,1748505034886,-430.0,0.00019178,2]
[362874081,1748505034896,-430.0,0.00019178,2]
[362874082,1748505034906,-430.0,0.00019178,2]
[362874083,1748505034915,-430.0,0.00019178,2]
[362874084,1748505034925,-430.0,0.00019178,2]
[362874085,1748505034934,-666.11,0.00019178,2]
[362874086,1748505034943,-430.0,0.00019178,2]
[362874087,1748505034953,-430.0,0.00019178,2]
[362874088,1748505034963,-430.0,0.00019178,2]
[362874089,1748505034973,-718.68,0.00019178,2]
[362874090,1748505034982,-575.25,0.00019178,2]
[362874091,1748505034992,-430.0,0.00019178,2]
[362874092,1748505035002,-430.0,0.00019178,2]
[362874093,1748505035012,-1886.86,0.00019178,2]
[362874094,1748505035022,-430.0,0.00019178,2]
[362874095,1748505035032,-430.0,0.00019178,2]
[362874096,1748505035041,-430.0,0.00019178,2]
[362874097,1748505035050,-430.0,0.00019178,2]
[362874098,1748505035060,-430.0,0.00019178,2]
[362874099,1748505035070,-430.0,0.00019178,2]
[362874100,1748505035079,-817.8,0.00019178,2]
[362874101,1748505035089,-449.36,0.00019178,2]
[362874102,1748505035099,-430.0,0.00019178,2]
[362874103,1748505035109,-430.0,0.00019178,2]
[362874104,1748505035118,-151.0,0.00019178,2]
[362874105,1748505035128,-500.0,0.00019178,2]
[362874106,1748505035138,-157.14085379,0.00019233,2]
[362874107,1748505035148,-640.62672971,0.00019328,2]
[362874108,1748505035157,-500.0,0.00019328,2]
[362874109,1748505035167,-500.0,0.00019328,2]
[362874110,1748505035177,-632.6773279,0.00019328,2]
[362874111,1748505035187,-500.0,0.00019328,2]
[362874112,1748505035197,-426.81926375,0.00019328,2]
[362874113,1748505035207,-41218.01644711,0.00019329,2]
[362874114,1748505035216,-1218.23006719,0.00019342,2]
[362874115,1748505035226,-1334.49,0.00019442,3]
[362874116,1748505035235,-1037.94,0.00019442,3]
[362874117,1748505035244,-518.97,0.00019442,3]
[362874118,1748505035253,-259.49,0.00019442,3]
[362874119,1748505035262,-778.48,0.00019442,3]
[362874120,1748505035272,-466.94882914,0.00019452,2]
[362874121,1748505035286,-430.0,0.00019452,2]
[362874122,1748505035297,-430.0,0.00019452,2]
[362874123,1748505035307,-440.55603492,0.00019452,2]
[362874124,1748505035317,-430.0,0.00019452,2]
[362874125,1748505035328,-430.0,0.00019452,2]
[362874126,1748505035337,-430.0,0.00019452,2]
[362874127,1748505035347,-430.0,0.00019452,2]
[362874128,1748505035359,-430.0,0.00019452,2]
[362874129,1748505035369,-430.0,0.00019452,2]
[362874130,1748505035379,-430.0,0.00019452,2]
[362874131,1748505035389,-430.0,0.00019452,2]
[362874132,1748505035399,-430.0,0.00019452,2]
[362874133,1748505035408,-409.82,0.00019452,2]
[362874134,1748505035418,-430.0,0.00019452,2]
[362874135,1748505035428,-430.0,0.00019452,2]
[362874136,1748505035437,-430.0,0.00019452,2]
[362874137,1748505035448,-430.0,0.00019452,2]
[362874138,1748505035458,-430.0,0.00019452,2]
[362874139,1748505035467,-440.44128043,0.00019452,2]
[362874140,1748505035478,-485.37,0.00019452,2]
[362874141,1748505035488,-430.0,0.00019452,2]
[362874142,1748505035497,-430.0,0.00019452,2]
[362874143,1748505035507,-430.0,0.00019452,2]
[362874144,1748505035517,-430.0,0.00019452,2]
[362874145,1748505035527,-430.0,0.00019452,2]
[362874146,1748505035537,-430.0,0.00019452,2]
[362874147,1748505035548,-430.0,0.00019452,2]
[362874148,1748505035558,-430.0,0.00019452,2]
[362874149,1748505035568,-430.0,0.00019452,2]
[362874150,1748505035578,-157.58,0.00019452,2]
[362874151,1748505035587,-615.3,0.00019452,2]
[362874152,1748505035597,-430.0,0.00019452,2]
[362874153,1748505035607,-430.0,0.00019452,2]
[362874154,1748505035617,-430.0,0.00019452,2]
[362874155,1748505035627,-430.0,0.00019452,2]
[362874156,1748505035636,-430.0,0.00019452,2]
[362874157,1748505035647,-430.0,0.00019452,2]
[362874158,1748505035656,-430.0,0.00019452,2]
[362874159,1748505035667,-430.0,0.00019452,2]
[362874160,1748505035677,-430.0,0.00019452,2]
[362874161,1748505035687,-430.0,0.00019452,2]
[362874162,1748505035696,-430.0,0.00019452,2]
[362874163,1748505035706,-1571.33,0.00019452,2]
[362874164,1748505035715,-430.0,0.00019452,2]
[362874165,1748505035725,-430.0,0.00019452,2]
[362874166,1748505035734,-430.0,0.00019452,2]
[362874167,1748505035744,-430.0,0.00019452,2]
[362874168,1748505035753,-430.0,0.00019452,2]
[362874169,1748505035763,-430.0,0.00019452,2]
[362874170,1748505035773,-430.0,0.00019452,2]
[362874171,1748505035782,-430.0,0.00019452,2]
[362874172,1748505035792,-430.0,0.00019452,2]
[362874173,1748505035801,-430.0,0.00019452,2]
[362874174,1748505035811,-430.0,0.00019452,2]
[362874175,1748505035820,-430.0,0.00019452,2]
[362874176,1748505035830,-430.0,0.00019452,2]
[362874177,1748505035839,-2732.65,0.00019452,2]
[362874178,1748505035849,-510.0,0.00019452,2]
[362874179,1748505035859,-993.66,0.00019452,2]
[362874180,1748505035868,-430.0,0.00019452,2]
[362874181,1748505035877,-430.0,0.00019452,2]
[362874182,1748505035887,-430.0,0.00019452,2]
[362874183,1748505035897,-2382.98,0.00019452,2]
[362874184,1748505035907,-613.17,0.00019452,2]
[362874185,1748505035916,-902.73,0.00019452,2]
[362874186,1748505035926,-1504.2,0.00019452,2]
[362874187,1748505035936,-430.0,0.00019452,2]
[362874188,1748505035946,-430.0,0.00019452,2]
[362874189,1748505035956,-483.50776994,0.00019452,2]
[362874190,1748505035965,-430.0,0.00019452,2]
[362874191,1748505035975,-430.0,0.00019452,2]
[362874192,1748505035985,-430.0,0.00019452,2]
[362874193,1748505035994,-430.0,0.00019452,2]
[362874194,1748505036004,-430.0,0.00019452,2]
[362874195,1748505036014,-190.14678823,0.00019452,2]
[362874196,1748505036023,-430.0,0.00019452,2]
[362874197,1748505036033,-430.0,0.00019452,2]
[362874198,1748505036045,-430.0,0.00019452,2]
[362874199,1748505036054,-430.0,0.00019452,2]
[362874200,1748505036064,-722.52,0.00019452,2]
[362874201,1748505036075,-430.0,0.00019452,2]
[362874202,1748505036084,-517.75836595,0.00019452,2]
[362874203,1748505036095,-791.86,0.00019452,2]
[362874204,1748505036105,-430.0,0.00019452,2]
[362874205,1748505036115,-430.0,0.00019452,2]
[362874206,1748505036125,-1447.82,0.00019452,2]
[362874207,1748505036135,-437.06822049,0.00019452,2]
[362874208,1748505036145,-430.0,0.00019452,2]
[362874209,1748505036154,-430.0,0.00019452,2]
[362874210,1748505036164,-433.64,0.00019452,2]
[362874211,1748505036174,-530.0,0.00019452,2]
[362874212,1748505036183,-551.80834776,0.00019452,2]
[362874213,1748505036193,-430.0,0.00019452,2]
[362874214,1748505036203,-430.0,0.00019452,2]
[362874215,1748505036212,-315.64459367,0.00019452,2]
[362874216,1748505036222,-430.0,0.00019452,2]
[362874217,1748505036231,-430.0,0.00019452,2]
[362874218,1748505036241,-756.65,0.00019452,2]
[362874219,1748505036250,-430.0,0.00019452,2]
[362874220,1748505036259,-430.0,0.00019452,2]
[362874221,1748505036269,-1636.66,0.00019452,2]
[362874222,1748505036281,-486.16070835,0.00019452,2]
[362874223,1748505036291,-576.68,0.00019452,2]
[362874224,1748505036300,-235.41,0.00019452,2]
[362874225,1748505036310,-430.0,0.00019452,2]
[362874226,1748505036320,-430.0,0.00019452,2]
[362874227,1748505036331,-430.0,0.00019452,2]